bitfinex/quotes_ETHUSD_20240823
["timestamp","ask_amount","ask_price","bid_price","bid_amount"]
[1724421680285,2.74714,2673.2,2672.3,3.74209]
[1724421680572,2.3548,2674.0,2672.4,0.07482833]
[1724421680732,3.0,2674.4,2672.5,0.07481854]
[1724421680939,0.005,2675.5,2673.1,3.74089]
[1724421680940,3.8714184,2674.2,2673.1,3.74089]
[1724421681154,0.07487018,2674.1,2672.9,3.74122]
[1724421681448,3.73959,2674.1,2672.9,0.748272]
[1724421681579,0.1319384,2674.2,2673.8,3.73992]
[1724421681808,0.1319384,2674.2,2673.1,3.0]
[1724421682112,0.1319384,2674.2,2674.1,3.73957]
[1724421682311,0.1319384,2674.2,2674.1,7.47914]
[1724421682523,0.1319384,2674.2,2674.1,11.966624]
[1724421682840,0.1319384,2674.2,2674.1,11.227054]
[1724421682958,0.1319384,2674.2,2674.1,14.966624]
[1724421683655,43.26466291,2674.6,2674.5,11.21703]
[1724421683860,43.26466291,2674.6,2674.5,12.73782]
[1724421684079,43.26466291,2674.6,2674.5,14.011602]
[1724421684276,43.26466291,2674.6,2674.5,11.751802]
[1724421686255,33.23798941,2674.6,2674.5,15.490812]
[1724421686527,1.0025232,2675.4,2674.5,15.490812]
[1724421686528,1.0025232,2675.4,2675.3,11.21367]
[1724421686827,1.0025232,2675.4,2675.3,17.05204224]
[1724421686963,1.0025232,2675.4,2675.3,3.0]
[1724421687163,1.0025232,2675.4,2675.0,3.73817]
[1724421687362,1.0025232,2675.4,2675.3,6.57626224]
[1724421687585,1.0025232,2675.4,2675.3,17.05204224]
[1724421687799,1.0025232,2675.4,2675.3,20.78993224]
[1724421687974,3.2e-06,2675.4,2675.3,17.05204224]
[1724421688179,3.2e-06,2675.4,2675.3,6.73789]
[1724421688364,3.2e-06,2675.4,2674.9,3.73831]
[1724421688563,3.2e-06,2675.4,2674.7,3.0]
[1724421688887,3.2e-06,2675.4,2675.3,3.73789]
[1724421689376,3.2e-06,2675.4,2674.9,6.73837]
[1724421689573,3.2e-06,2675.4,2675.0,3.73825]
[1724421689774,3.2e-06,2675.4,2675.1,3.0]
[1724421689968,3.2e-06,2675.4,2675.1,6.73817]
[1724421690168,3.2e-06,2675.4,2675.1,3.0]
[1724421690461,3.2e-06,2675.4,2674.8,6.57626224]
[1724421690462,3.2e-06,2675.4,2674.8,3.73846]
[1724421690666,3.73817,2675.2,2674.3,3.73926]
[1724421690988,0.60444732,2675.2,2674.4,3.73913]
[1724421691187,2.3063,2675.3,2674.8,3.73852]
[1724421691498,2.3063,2675.3,2674.9,0.07475659]
[1724421691701,3.2e-06,2675.4,2675.2,3.73803]
[1724421691901,3.2e-06,2675.4,2675.0,3.73831]
[1724421692201,2.3844,2675.3,2673.7,6.57626224]
[1724421692402,2.70569752,2675.3,2673.7,6.57626224]
[1724421692602,6.0241,2674.8,2674.0,3.73969]
[1724421692900,6.0241,2674.8,2674.1,3.73949]
[1724421692901,2.2855,2674.8,2674.1,3.73949]
[1724421693108,3.73893,2674.6,2673.0,3.74098]
[1724421693282,2.43607018,2674.5,2673.5,3.74037]
[1724421693477,2.3612,2674.4,2673.2,3.74073]
[1724421693679,4.28812,2675.2,2672.5,6.57626224]
[1724421693680,6.10094,2674.0,2673.0,3.74109]
[1724421693894,2.3612,2674.0,2673.1,3.74096]
[1724421694077,2.3612,2674.0,2673.2,3.74081]
[1724421694278,2.3612,2674.0,2673.3,3.74068]
[1724421694478,2.3612,2674.0,2672.8,3.74136]
[1724421694773,2.3612,2674.0,2672.5,6.57626224]
[1724421694980,2.3612,2674.0,2672.6,3.74158]
[1724421695267,2.3612,2674.0,2672.9,3.74123]
[1724421695472,6.10091,2674.0,2673.0,3.7411]
[1724421695672,6.10091,2674.0,2673.1,3.74097]
[1724421696074,2.3612,2674.0,2673.1,3.74097]
[1724421696696,6.10093,2674.0,2673.1,3.74097]
[1724421696900,6.10093,2674.0,2672.9,6.74124]
[1724421696901,2.3499,2674.7,2673.7,3.7401]
[1724421697083,2.3499,2674.7,2674.0,3.7397]
[1724421697279,2.3499,2674.7,2673.8,6.73997]
[1724421697505,3.73894,2674.6,2673.8,3.0]
[1724421697702,2.3499,2674.5,2673.6,3.74024]
[1724421697909,2.3499,2674.5,2673.5,3.0]
[1724421698227,2.3499,2674.5,2674.3,3.73919]
[1724421698369,2.3499,2674.5,2673.8,3.73996]
[1724421698573,2.3499,2674.5,2673.9,3.0]
[1724421698776,2.3499,2674.5,2674.3,3.73917]
[1724421698994,2.3499,2674.5,2673.7,3.0]
[1724421698995,2.3499,2674.5,2673.9,3.73982]
[1724421699230,2.3499,2674.5,2673.7,6.74011]
[1724421699582,2.3499,2674.5,2673.7,3.0]
[1724421699787,2.4967,2674.9,2674.7,3.7387]
[1724421700206,2.4967,2674.9,2674.1,3.0]
[1724421700640,2.4967,2674.9,2674.0,6.57626224]
[1724421700823,2.4967032,2675.4,2675.3,3.73789]
[1724421701043,2.4967032,2675.4,2674.8,3.73852]
[1724421701213,2.4967032,2675.4,2674.6,6.73875]
[1724421701420,2.74737352,2675.4,2674.6,3.73875]
[1724421701612,2.4967032,2675.4,2674.2,3.0]
[1724421701837,2.4967032,2675.4,2674.6,3.73883]
[1724421702032,2.4967032,2675.4,2674.4,3.73914]
[1724421702235,3.73805,2675.2,2674.2,3.73933]
[1724421702405,2.4967,2674.8,2674.0,6.73967]
[1724421702742,2.4967,2674.8,2674.1,3.0]
[1724421702950,2.4967,2674.8,2673.5,6.57626224]
[1724421702951,2.4967,2674.8,2673.9,3.0]
[1724421703168,2.4967,2674.8,2674.7,3.73873]
[1724421703311,2.4967,2674.8,2674.7,7.47746]
[1724421704053,2.4967,2674.8,2674.7,3.73873]
[1724421704545,2.4967,2675.3,2674.3,3.0]
[1724421704754,2.4967,2675.3,2674.1,3.9524955]
[1724421704917,2.4967,2675.3,2674.5,6.57626224]
[1724421705122,2.4967,2675.3,2675.2,3.73803]
[1724421705323,2.4967,2675.3,2674.9,3.73833]
[1724421705511,2.4967,2675.3,2674.8,3.73858]
[1724421705711,2.4967,2675.3,2674.9,6.73845]
[1724421705906,2.4967,2675.3,2675.1,3.73809]
[1724421706106,2.4967,2675.3,2674.9,3.73838]
[1724421706341,2.4967,2675.3,2675.2,3.73803]
[1724421706535,2.4967,2675.3,2675.1,3.73813]
[1724421706862,2.4967,2675.3,2675.2,3.73803]
[1724421707070,2.4967,2675.3,2675.0,3.73828]
[1724421707212,2.4967,2675.3,2675.2,3.73803]
[1724421707651,2.4967,2675.3,2674.5,3.73896]
[1724421707947,2.74687032,2675.3,2674.6,3.73887]
[1724421708119,2.4967,2675.3,2674.6,3.73875]
[1724421708320,2.4967,2675.3,2674.0,6.57626224]
[1724421708321,2.04990284,2675.3,2675.2,3.73803]
[1724421708652,1.59748287,2675.3,2675.0,3.73825]
[1724421708827,1.59748287,2675.3,2674.6,3.73885]
[1724421709151,1.59748287,2675.3,2674.7,3.0]
[1724421709347,1.59748287,2675.3,2674.2,0.43453153]
[1724421709519,1.59748287,2675.3,2674.6,3.73886]
[1724421709720,1.59748287,2675.3,2675.2,3.73803]
[1724421709966,1.59748287,2675.3,2675.2,7.47606]
[1724421710451,1.59748287,2675.3,2674.7,3.0]
[1724421710659,1.59748287,2675.3,2674.8,3.73858]
[1724421710827,1.59748287,2675.3,2675.1,3.73816]
[1724421711039,1.59748287,2675.3,2675.0,3.73828]
[1724421711345,1.59748287,2675.3,2674.8,3.73858]
[1724421711852,1.59748287,2675.3,2673.7,0.43453153]
[1724421712177,1.59748287,2675.3,2675.0,3.7383]
[1724421712313,1.59748287,2675.3,2674.3,3.0]
[1724421712623,1.59748287,2675.3,2674.7,3.7386]
[1724421712811,2.13150348,2675.3,2674.3,6.73924]
[1724421713016,2.4344,2675.1,2674.4,3.73915]
[1724421713271,2.4344,2675.1,2674.5,3.73901]
[1724421713572,2.4344,2675.1,2675.0,3.73831]
[1724421714322,2.4344,2675.1,2675.0,7.47662]
[1724421714323,2.2442125,2675.1,2675.0,7.47662]
[1724421715110,3.2e-06,2675.4,2675.0,3.73831]
[1724421715351,3.2e-06,2675.4,2675.3,11.21367]
[1724421715554,3.2e-06,2675.4,2675.3,14.21367]
[1724421716424,3.2e-06,2675.4,2675.3,17.95156]
[1724421716653,0.005,2675.6,2675.3,17.95156]
[1724421716654,3.2e-06,2675.6,2675.5,11.21283]
[1724421716844,3.2e-06,2675.6,2675.5,14.21283]
[1724421717026,3.2e-06,2675.6,2675.5,10.47522]
[1724421717227,3.2e-06,2675.6,2674.9,6.57626224]
[1724421717430,3.2e-06,2675.6,2675.5,7.47522]
[1724421717739,0.4602641,2675.8,2675.7,7.47466]
[1724421717947,0.005,2677.2,2676.1,7.47356]
[1724421718113,2.4707,2676.7,2676.1,7.47356]
[1724421718313,2.4757,2677.2,2676.1,14.21034]
[1724421718755,2.4757,2677.2,2676.1,10.47356]
[1724421719059,2.3645,2676.5,2676.1,6.73678]
[1724421719357,0.005,2677.2,2676.3,3.7365]
[1724421719659,0.005,2677.2,2676.2,3.73659]
[1724421719660,3.73551,2677.1,2676.2,3.73659]
[1724421719827,4.483075,2677.1,2676.2,3.73659]
[1724421720029,0.07487018,2677.0,2675.7,3.73725]
[1724421720342,3.73564,2677.0,2675.9,3.73704]
[1724421720659,3.73567,2676.9,2676.1,3.7367]
[1724421720852,0.005,2677.2,2676.3,3.73642]
[1724421721052,3.73539,2677.1,2676.3,3.73642]
[1724421721255,0.747553,2677.1,2676.3,3.73642]
[1724421721417,0.005,2677.2,2677.0,3.73547]
[1724421721617,0.005,2677.2,2676.3,3.73638]
[1724421721618,0.005,2677.2,2676.6,3.73607]
[1724421722025,0.005,2677.2,2676.3,3.73648]
[1724421722386,2.3236,2677.1,2677.0,3.73552]
[1724421722522,3.73365,2678.4,2677.4,3.73495]
[1724421722720,0.746709,2678.3,2677.6,3.73457]
[1724421722924,0.58577515,2678.6,2677.7,3.73454]
[1724421723120,0.58577515,2678.6,2677.1,3.0]
[1724421723121,0.1292702,2678.9,2677.8,3.73437]
[1724421723365,0.1292702,2678.9,2677.9,3.0]
[1724421723579,0.1292702,2678.9,2677.7,3.73444]
[1724421723724,0.20414038,2678.9,2677.9,3.73418]
[1724421723926,0.1292702,2678.9,2678.0,3.73401]
[1724421724310,0.29207,2679.3,2679.2,7.4649]
[1724421724582,0.29207,2679.3,2678.7,3.73303]
[1724421724719,0.29207,2679.3,2678.2,3.73378]
[1724421724720,3.73261,2679.1,2678.2,3.73378]
[1724421725064,0.29207,2679.3,2677.8,3.0]
[1724421725065,4.0244,2679.3,2677.8,3.0]
[1724421725268,3.80733018,2679.2,2677.9,3.73426]
[1724421725563,2.2949,2679.0,2677.8,3.0]
[1724421725771,2.2949,2679.0,2678.7,3.7331]
[1724421725979,2.2949,2679.0,2678.7,3.73303]
[1724421726130,0.29207,2679.3,2678.3,3.73358]
[1724421726505,0.29207,2679.3,2678.6,3.73329]
[1724421726663,0.29207,2679.3,2677.8,6.57626224]
[1724421726664,2.4358,2678.8,2677.9,3.73426]
[1724421726822,2.4358,2678.8,2677.9,3.73423]
[1724421727025,2.4358,2678.8,2677.3,6.57626224]
[1724421727231,6.16911,2678.6,2677.6,3.73462]
[1724421727444,2.4358,2678.4,2677.7,3.73444]
[1724421727660,3.73371,2678.3,2677.4,3.73485]
[1724421727862,3.052711,2678.4,2676.8,6.57626224]
[1724421728049,2.4358,2678.4,2677.0,3.73538]
[1724421728263,2.4358,2678.4,2677.4,3.73491]
[1724421728427,0.272787,2679.2,2676.8,6.57626224]
[1724421728428,2.3187,2678.2,2676.8,6.57626224]
[1724421728776,2.3187,2678.2,2677.8,3.73428]
[1724421728982,2.3187,2678.2,2677.4,3.73493]
[1724421729179,2.3187,2678.2,2677.5,0.0746824]
[1724421729461,2.3187,2678.2,2678.1,3.73399]
[1724421729770,2.3187,2678.2,2678.1,7.46798]
[1724421730080,2.3187,2678.2,2678.1,3.73399]
[1724421730566,2.3071,2678.7,2678.6,3.73319]
[1724421730858,2.3071,2678.7,2678.4,3.73354]
[1724421731059,2.3071,2678.7,2678.6,3.73329]
[1724421731270,2.2509,2679.2,2678.2,3.73377]
[1724421731454,2.2509,2679.2,2679.1,3.73259]
[1724421731635,2.2509,2679.2,2678.3,6.65091098]
[1724421731636,0.29207,2679.3,2679.2,7.4649]
[1724421731971,0.29207,2679.3,2679.0,3.73267]
[1724421732263,0.29207,2679.3,2679.1,3.73251]
[1724421732432,0.29207,2679.3,2678.6,3.73329]
[1724421732623,0.29207,2679.3,2679.1,3.73249]
[1724421732827,0.29207,2679.3,2679.2,3.73245]
[1724421733057,0.29207,2679.3,2679.2,7.4649]
[1724421733426,0.29207,2679.3,2679.2,11.19735]
[1724421734154,0.29207,2679.3,2679.2,14.9298]
[1724421734368,0.29207,2679.3,2679.2,14.19735]
[1724421734591,2.3793,2680.4,2680.3,3.73092]
[1724421734792,2.3793,2680.4,2680.2,3.73104]
[1724421735097,2.3793,2680.4,2680.3,3.73092]
[1724421735266,2.3793,2680.4,2679.9,3.73146]
[1724421735596,2.3793,2680.4,2679.8,3.73158]
[1724421735757,2.3793,2680.4,2679.6,3.73185]
[1724421735956,2.3793,2680.4,2679.8,3.73159]
[1724421736596,2.3793,2680.4,2679.6,3.73188]
[1724421736798,2.3793,2680.4,2678.5,3.73341]
[1724421736799,2.489,2680.0,2679.1,3.73259]
[1724421736995,2.489,2680.0,2678.4,6.57626224]
[1724421736996,2.489,2680.0,2679.3,3.73219]
[1724421737199,2.489,2680.0,2679.5,3.73191]
[1724421737497,2.3591,2680.7,2679.8,6.57626224]
[1724421737996,3.73065,2680.5,2679.6,3.73188]
[1724421738408,6.08948,2680.7,2679.7,3.73175]
[1724421738701,6.08948,2680.7,2679.0,6.57626224]
[1724421738702,0.58513785,2681.1,2680.6,3.73045]
[1724421738869,2.4903,2681.3,2680.7,3.73036]
[1724421739067,2.4903,2681.3,2680.6,3.73048]
[1724421739304,0.1292702,2681.6,2681.2,3.72956]
[1724421739520,2.6170702,2681.6,2681.0,3.72993]
[1724421739680,3.72943,2681.4,2680.6,3.73047]
[1724421740006,3.73028,2680.8,2679.9,3.73142]
[1724421740307,2.4238,2680.7,2679.6,3.73176]
[1724421740466,6.15427,2680.7,2679.9,3.73144]
[1724421740660,6.15427,2680.7,2679.0,3.73269]
[1724421740661,2.4238,2680.7,2680.0,3.73123]
[1724421740866,2.4238,2680.7,2680.5,3.73063]
[1724421741064,2.4238,2680.7,2679.8,6.57626224]
[1724421741279,2.4238,2680.7,2680.5,3.73054]
[1724421741700,2.4238,2680.7,2680.6,7.461]
[1724421741915,2.2619,2681.4,2680.9,3.72997]
[1724421742076,2.2619,2682.5,2682.1,7.45684]
[1724421742262,2.2619,2682.5,2682.2,3.72826]
[1724421742664,2.2619,2682.5,2681.7,0.38996421]
[1724421742903,3.72862,2682.0,2681.7,0.38996421]
[1724421743221,0.26271095,2682.6,2681.7,0.38996421]
[1724421743379,0.26271095,2682.6,2681.9,3.7286]
[1724421743585,2.4738,2682.5,2681.9,3.7286]
[1724421743777,2.4738,2682.5,2681.7,0.38996421]
[1724421743778,0.07487018,2682.4,2681.7,0.38996421]
[1724421744115,0.25486702,2682.3,2681.7,0.38996421]
[1724421744625,6.03583,2681.8,2681.7,0.38996421]
[1724421744812,9.76466,2681.8,2681.7,0.38996421]
[1724421746632,2.307,2681.8,2681.7,0.38996421]
[1724421747477,2.307,2681.8,2681.7,7.84790421]
[1724421747780,2.393,2682.5,2681.9,3.72859]
[1724421748000,2.393,2682.5,2681.7,3.72897]
[1724421748001,2.65857109,2682.5,2681.4,3.72933]
[1724421748208,2.65857109,2682.5,2680.9,3.73005]
[1724421748402,2.65857109,2682.5,2681.6,3.72909]
[1724421748595,2.393,2682.5,2682.0,3.72855]
[1724421748915,3.72802,2682.4,2681.6,3.72907]
[1724421749078,3.72802,2682.4,2681.0,0.51073397]
[1724421749079,2.393,2682.5,2682.0,3.72843]
[1724421749280,2.393,2682.5,2682.1,3.80297022]
[1724421749496,2.393,2682.5,2682.1,0.07456022]
[1724421749698,2.393,2682.5,2682.0,3.72853]
[1724421749931,2.393,2682.5,2681.5,3.72923]
[1724421750087,2.393,2682.5,2681.0,0.51073397]
[1724421750088,6.38649109,2682.5,2681.0,0.51073397]
[1724421750285,6.38649109,2682.5,2680.9,0.51073397]
[1724421750496,3.72843,2682.1,2681.2,3.72966]
[1724421750794,3.72815,2682.3,2681.2,3.72966]
[1724421750995,0.58461574,2683.3,2682.1,2.3229]
[1724421751219,2.3952,2683.8,2682.5,3.72784]
[1724421751220,3.72644,2683.6,2682.5,3.72784]
[1724421751523,0.58457845,2683.7,2683.0,3.72709]
[1724421751929,0.58457845,2683.7,2682.8,3.72738]
[1724421752108,0.58457845,2683.7,2683.0,3.72713]
[1724421752109,0.8825563,2683.7,2683.0,3.72713]
[1724421752430,0.58457845,2683.7,2683.2,3.72687]
[1724421752604,0.58457845,2683.7,2683.3,0.07452274]
[1724421752806,0.1292702,2684.3,2683.4,3.72656]
[1724421753011,0.11577983,2684.6,2684.5,11.17524]
[1724421753199,9.83e-06,2685.0,2684.9,11.17359]
[1724421753400,9.83e-06,2685.0,2684.9,7.44906]
[1724421753713,9.83e-06,2685.0,2684.9,3.72453]
[1724421753908,9.83e-06,2685.0,2684.9,7.52353238]
[1724421754238,9.83e-06,2685.0,2684.9,11.24804174]
[1724421754546,2.255,2687.0,2685.6,3.7235]
[1724421754721,2.255,2687.0,2684.6,6.72481]
[1724421754722,3.72232,2686.5,2685.4,3.72382]
[1724421754927,3.75527516,2686.4,2685.1,3.7242]
[1724421755125,0.03280516,2686.4,2685.6,6.57626224]
[1724421755327,0.03280516,2686.4,2686.3,7.44518]
[1724421755949,0.03280516,2686.4,2686.1,3.72281]
[1724421756147,0.03280516,2686.4,2685.7,3.0]
[1724421756302,0.03280516,2686.4,2685.8,4.42324]
[1724421756611,0.03280516,2686.4,2686.3,3.72259]
[1724421756809,5.6e-07,2687.1,2686.3,3.72259]
[1724421756996,5.6e-07,2687.1,2687.0,3.72162]
[1724421757207,5.6e-07,2687.1,2686.8,3.72181]
[1724421757394,5.6e-07,2687.1,2686.4,6.72234]
[1724421757629,5.6e-07,2687.1,2687.0,3.72162]
[1724421757835,5.6e-07,2687.1,2686.4,3.0]
[1724421758135,2.45100056,2687.1,2685.7,6.57626224]
[1724421758436,2.69610062,2687.1,2686.0,3.72299]
[1724421758641,2.69610062,2687.1,2686.2,3.72261]
[1724421758938,2.69610062,2687.1,2686.2,3.72259]
[1724421759099,2.45100056,2687.1,2685.8,3.0]
[1724421759305,2.45100056,2687.1,2686.9,3.72172]
[1724421759306,5.6e-07,2687.1,2686.9,3.72172]
[1724421759504,5.6e-07,2687.1,2686.7,3.7219]
[1724421759706,5.6e-07,2687.1,2686.7,3.72199]
[1724421759900,5.6e-07,2687.1,2686.9,3.72175]
[1724421760105,5.6e-07,2687.1,2686.9,3.72174]
[1724421760408,5.6e-07,2687.1,2686.2,9.57626224]
[1724421760623,5.6e-07,2687.1,2686.9,3.72175]
[1724421760800,5.6e-07,2687.1,2686.7,3.72202]
[1724421761001,5.6e-07,2687.1,2687.0,3.72162]
[1724421761204,5.6e-07,2687.1,2687.0,7.44324]
[1724421761999,5.6e-07,2687.1,2687.0,14.16486]
[1724421762199,5.6e-07,2687.1,2687.0,3.72162]
[1724421762436,5.6e-07,2687.1,2687.0,7.44324]
[1724421763012,5.6e-07,2687.1,2687.0,14.23927004]
[1724421763212,5.6e-07,2687.1,2687.0,18.51089004]
[1724421763413,0.979602,2687.5,2687.4,14.88424]
[1724421763414,2.56e-06,2687.5,2687.4,14.88424]
[1724421763613,2.56e-06,2687.5,2687.4,14.71318]
[1724421764221,2.56e-06,2687.5,2687.4,18.43424]
[1724421764439,0.003768,2688.4,2688.1,4.42009]
[1724421764616,8e-06,2688.4,2688.3,17.73572224]
[1724421765215,8e-06,2688.4,2688.3,7.43964]
[1724421765703,8e-06,2688.4,2687.7,3.0]
[1724421765704,8e-06,2688.4,2688.2,3.71986]
[1724421765908,8e-06,2688.4,2688.0,3.72016]
[1724421766119,3.71927,2688.7,2687.5,3.7209]
[1724421766322,3.71794,2689.7,2687.3,0.7]
[1724421766502,3.71889,2689.0,2687.3,3.72114]
[1724421766704,3.71889,2689.0,2687.8,3.72041]
[1724421767005,3.71731,2690.2,2688.6,3.7194]
[1724421767343,6.57626224,2691.1,2688.3,0.7]
[1724421767552,3.71657,2690.7,2689.0,3.71883]
[1724421767849,4.0617986,2690.0,2689.1,3.7187]
[1724421768048,3.71771,2689.9,2688.8,3.71907]
[1724421768258,3.71827,2689.5,2688.4,6.71963]
[1724421768416,3.71766,2689.9,2688.3,3.71969]
[1724421768777,0.3442086,2690.0,2689.3,3.71836]
[1724421768981,0.3442086,2690.0,2688.4,10.5802872]
[1724421769120,2.4038,2689.8,2688.8,3.71904]
[1724421769470,2.3571,2689.9,2688.1,3.0]
[1724421769616,3.7178,2689.8,2688.6,3.71939]
[1724421769811,6.07481,2689.9,2688.9,3.71889]
[1724421770017,6.07481,2689.9,2688.4,4.17362496]
[1724421770018,2.3571,2689.9,2689.0,3.71884]
[1724421770216,2.66784505,2689.9,2688.6,3.71936]
[1724421770459,3.71844,2689.3,2688.2,3.7199]
[1724421770660,2.3547,2689.4,2687.9,3.72025]
[1724421770863,2.3547,2689.4,2687.5,3.72081]
[1724421770864,3.71892,2689.0,2688.0,3.72016]
[1724421771018,3.71927,2688.7,2687.8,3.72049]
[1724421771377,2.3595,2688.9,2688.0,3.72022]
[1724421771525,2.3595,2688.9,2688.1,3.72006]
[1724421771716,2.3595,2688.9,2688.2,3.71994]
[1724421772228,2.3595,2688.9,2688.2,0.45402496]
[1724421772432,2.3595,2688.9,2687.5,8.8175856]
[1724421772433,2.3595,2688.9,2687.4,3.72096]
[1724421772638,0.23595,2688.8,2687.9,3.72026]
[1724421772819,3.95519,2688.8,2687.7,3.72061]
[1724421773015,6.0163,2688.7,2687.8,3.72048]
[1724421773230,2.3088,2688.7,2687.7,0.45402496]
[1724421773416,6.02876,2688.2,2687.3,4.17522496]
[1724421773628,6.02876,2688.2,2686.5,3.72221]
[1724421773629,0.602876,2688.1,2686.9,3.72171]
[1724421773851,0.602876,2688.1,2686.5,3.72221]
[1724421773852,0.602876,2688.1,2687.2,3.72133]
[1724421774058,4.323016,2688.1,2686.5,3.72221]
[1724421774257,3.72027,2688.0,2687.3,0.45402496]
[1724421774432,0.602876,2688.1,2687.0,0.39825412]
[1724421774632,2.3088,2688.2,2687.0,0.39825412]
[1724421774932,2.344,2688.0,2686.3,3.72247]
[1724421775148,3.72037,2687.9,2687.0,4.09486412]
[1724421775447,3.72079,2687.6,2686.7,4.09527412]
[1724421776052,6.20765,2687.5,2686.6,3.7221]
[1724421776248,7.200481,2687.5,2686.6,3.72214]
[1724421776455,2.4867,2687.5,2686.3,0.37038746]
[1724421776652,2.4867,2687.5,2686.4,3.72232]
[1724421776840,2.4867,2687.5,2686.2,3.72268]
[1724421776841,3.72109,2687.4,2686.5,3.72231]
[1724421777240,6.20764,2687.5,2686.6,3.72216]
[1724421777647,2.3154,2687.2,2685.7,0.37038746]
[1724421778047,2.3154,2687.2,2686.5,3.72228]
[1724421778323,3.72159,2687.1,2685.9,3.72314]
[1724421778523,2.3154,2687.2,2685.9,3.72314]
[1724421778524,2.3154,2687.2,2686.0,3.7229]
[1724421778724,3.72174,2687.0,2686.0,3.7229]
[1724421778962,2.3743,2687.1,2686.0,3.7229]
[1724421778963,2.3743,2686.8,2686.0,3.7229]
[1724421779282,2.3743,2686.8,2685.4,3.72372]
[1724421779283,2.3743,2686.8,2685.6,3.72351]
[1724421779646,2.2769,2686.6,2685.5,3.72366]
[1724421779973,2.4027,2686.3,2685.5,3.72366]
[1724421780179,8.1296446,2687.2,2685.5,3.72366]
[1724421780180,2.4027,2687.5,2685.5,3.72364]
[1724421780385,2.4027,2687.5,2687.0,3.72157]
[1724421780543,8.1296446,2689.5,2687.1,0.69198716]
[1724421780743,2.4027,2688.0,2687.2,3.72133]
[1724421780970,2.4027,2688.0,2687.3,0.07440128]
[1724421781184,2.4027,2688.0,2687.3,3.72107]
[1724421781480,2.4027,2688.0,2686.2,6.13597]
[1724421781481,0.24027,2687.9,2686.6,3.72206]
[1724421781642,2.4027,2688.0,2687.4,3.72097]
[1724421781847,2.4027,2688.0,2687.2,3.72132]
[1724421782081,2.4027,2688.0,2687.3,0.07440998]
[1724421782247,3.72038,2687.9,2686.9,3.72174]
[1724421782443,2.3299,2687.7,2686.7,3.72198]
[1724421782647,2.3083,2687.6,2686.4,3.7224]
[1724421782846,2.3083,2687.2,2685.8,0.47534797]
[1724421783074,2.3083,2687.2,2686.4,3.72244]
[1724421783283,3.72118,2687.4,2686.2,3.72272]
[1724421783469,2.680418,2687.3,2686.5,3.72228]
[1724421783644,2.3083,2687.0,2685.9,3.72309]
[1724421783843,6.19319,2686.9,2685.9,3.72309]
[1724421784049,3.72231,2686.5,2685.6,3.72351]
[1724421784354,2.4713,2686.4,2685.6,3.72356]
[1724421784705,2.4713,2686.4,2686.1,3.72279]
[1724421784905,2.4713,2686.4,2686.1,3.72276]
[1724421785061,2.4713,2686.4,2685.9,3.72313]
[1724421785449,2.4713,2686.4,2685.2,3.72399]
[1724421785450,3.72274,2686.2,2685.2,3.72407]
[1724421785788,2.3615,2686.0,2685.1,3.72423]
[1724421786087,2.3615,2686.0,2684.8,3.72454]
[1724421786293,3.72327,2685.9,2684.7,3.72479]
[1724421786496,3.72385,2685.4,2684.3,3.72532]
[1724421786654,2.2557,2685.3,2684.3,3.72532]
[1724421786863,2.2557,2685.3,2684.4,3.72521]
[1724421787055,0.597955,2685.3,2684.1,3.72562]
[1724421787255,0.597955,2685.3,2683.8,8.1296446]
[1724421787256,2.3992,2685.0,2683.8,11.8555846]
[1724421787494,2.3992,2685.0,2683.9,3.72585]
[1724421787704,2.3992,2685.0,2684.3,11.8549746]
[1724421787858,2.3992,2685.0,2684.9,3.72453]
[1724421788193,2.3992,2685.0,2684.6,3.72487]
[1724421788399,2.3992,2685.0,2684.4,3.72522]
[1724421788699,2.4897,2684.8,2683.9,3.72579]
[1724421788897,3.72496,2684.6,2683.3,12.19107861]
[1724421789087,2.3903,2684.5,2683.6,3.7263]
[1724421789396,2.3903,2684.5,2683.3,8.1296446]
[1724421789397,2.3903,2684.5,2683.7,0.07450916]
[1724421789568,2.3304,2685.5,2684.3,8.1296446]
[1724421789756,2.3304,2685.5,2685.4,3.72384]
[1724421789952,2.3304,2685.5,2684.8,11.8542946]
[1724421790299,2.3304,2685.5,2684.9,3.72449]
[1724421790518,2.3304,2685.5,2684.3,8.1296446]
[1724421790805,2.3304,2685.5,2684.5,3.72506]
[1724421790979,2.3304,2685.5,2684.3,8.1296446]
[1724421791184,2.3304,2685.5,2684.6,3.72494]
[1724421791382,2.3304,2685.5,2685.4,3.72384]
[1724421791584,2.3304,2685.5,2684.4,3.7252]
[1724421791585,2.4753,2685.9,2685.8,7.44655]
[1724421791787,0.372118,2687.3,2685.8,7.44655]
[1724421791788,2.3091,2686.4,2686.1,3.72274]
[1724421792193,2.3091,2686.4,2685.8,8.6796446]
[1724421792390,2.3091,2686.4,2685.8,12.4028546]
[1724421792563,2.3091,2686.4,2685.5,3.72361]
[1724421792971,2.3091,2686.4,2685.3,11.8536046]
[1724421793196,2.54001,2686.4,2685.3,11.8536046]
[1724421793515,2.54001,2686.4,2685.3,8.1296446]
[1724421793516,6.26251,2686.4,2685.3,8.1296446]
[1724421793661,2.2501,2686.2,2684.8,11.8542346]
[1724421793861,6.09089,2685.8,2684.5,3.725]
[1724421794064,2.3676,2685.8,2684.8,3.72467]
[1724421794371,2.3676,2685.6,2683.8,8.1296446]
[1724421794660,6.02977,2685.1,2683.9,3.72591]
[1724421794849,3.72443,2685.0,2683.8,11.8556946]
[1724421795039,3.72467,2684.8,2683.6,3.72632]
[1724421795238,6.03017,2684.8,2683.6,3.72632]
[1724421795550,6.03017,2684.8,2683.4,3.7266]
[1724421795551,2.3898,2684.5,2683.4,3.7266]
[1724421795745,6.1055836,2684.5,2683.4,3.7266]
[1724421795983,3.72497,2684.6,2683.1,3.72701]
[1724421796123,3.72549,2684.3,2683.0,3.72716]